bitfinex-derivatives/quotes_ETHF0:USTF0_20260201
["timestamp","ask_amount","ask_price","bid_price","bid_amount"]
[1769956495290,0.45966928,2348.6,2344.0,3.71566861]
[1769956495491,0.45966928,2346.1,2343.9,0.44924055]
[1769956495786,0.45966928,2345.8,2343.9,0.44924055]
[1769956496095,0.07957472,2343.9,2342.2,0.44924055]
[1769956496287,0.08508329,2343.9,2342.2,0.45227059]
[1769956496488,0.00550857,2343.9,2342.6,0.44924055]
[1769956496695,0.00550857,2343.9,2342.5,0.44924055]
[1769956497194,2.40544214,2345.6,2342.2,2.13003004]
[1769956497195,0.21333,2346.0,2343.5,0.44924055]
[1769956497386,0.21333,2346.0,2343.7,0.44924055]
[1769956497592,0.21333,2346.0,2343.9,0.44924055]
[1769956497891,15.36633908,2346.5,2344.9,0.44924055]
[1769956497892,13.23933908,2346.5,2344.9,0.44924055]
[1769956498092,0.00275328,2346.5,2344.9,0.45296061]
[1769956498386,0.22830644,2345.3,2343.1,0.44924055]
[1769956498591,0.22830644,2345.3,2343.3,0.44924055]
[1769956498790,0.22830644,2345.3,2343.2,2.128]
[1769956498791,0.22830644,2344.9,2342.5,0.44924055]
[1769956498990,0.22830644,2344.9,2342.2,2.497]
[1769956498991,0.22830644,2345.8,2343.0,0.44924055]
[1769956499190,0.22830644,2345.1,2343.0,0.44924055]
[1769956499489,0.44174644,2344.8,2343.0,0.45449245]
[1769956499696,0.44678412,2344.8,2343.0,0.45449245]
[1769956499894,0.44678412,2344.8,2343.4,5.39942902]
[1769956500190,0.21964242,2345.7,2343.6,0.44924055]
[1769956500387,0.21964242,2345.7,2343.5,2.129]
[1769956500388,13.02982151,2346.3,2344.6,0.44924055]
[1769956500591,0.21964242,2347.7,2345.8,0.44924055]
[1769956500797,0.21964242,2347.7,2342.8,0.44924055]
[1769956501089,0.21964242,2347.5,2344.2,0.44924055]
[1769956501290,0.00143566,2347.5,2346.0,0.44924055]
[1769956501494,0.00143566,2347.5,2346.2,0.44924055]
[1769956501989,0.00143566,2347.5,2347.1,5.39942902]
[1769956502195,0.222147,2348.5,2347.1,5.39942902]
[1769956502387,0.222147,2348.5,2346.9,0.44924055]
[1769956502585,0.21318,2347.7,2346.0,0.00353815]
[1769956502788,4.76586203,2350.3,2346.8,4.43556205]
[1769956502789,0.21322,2347.2,2346.8,4.43556205]
[1769956502989,0.21324,2347.0,2346.0,0.00353815]
[1769956503191,0.45966928,2347.1,2346.0,4.43556205]
[1769956503387,0.2132,2347.4,2346.1,4.43556205]
[1769956503588,2.80286928,2347.4,2345.4,2.13]
[1769956503896,0.45966928,2348.6,2345.8,0.21334]
[1769956504093,0.21311,2348.4,2345.8,0.21655081]
[1769956504395,0.0031938,2348.6,2347.0,4.43556205]
[1769956504590,0.0031938,2348.6,2347.1,0.44924055]
[1769956504788,0.45966928,2348.4,2345.9,0.44924055]
[1769956505093,0.21317,2347.7,2346.2,0.44924055]
[1769956505293,0.0031938,2348.6,2345.8,0.00321081]
[1769956505294,0.21325,2346.9,2345.8,0.00321081]
[1769956505493,0.00338827,2346.9,2345.8,0.00321081]
[1769956505796,2.499,2348.2,2345.8,0.00321081]
[1769956505797,0.45966928,2347.8,2345.8,0.00321081]
[1769956506297,0.21323,2347.1,2345.8,4.43877286]
[1769956506593,0.21323,2347.1,2345.8,0.00321081]
[1769956506792,0.45966928,2348.6,2345.8,0.00321081]
[1769956506994,0.21309,2348.7,2345.8,0.00321081]
[1769956506995,0.21312,2348.3,2346.9,4.43556205]
[1769956507201,0.21313,2348.2,2346.8,2.131]
[1769956507390,0.21313,2348.2,2346.9,0.48797487]
[1769956507695,0.21314,2348.1,2347.3,4.43556205]
[1769956507894,0.47106215,2349.8,2347.1,0.48797487]
[1769956508089,0.47106215,2349.3,2347.5,0.48797487]
[1769956508295,0.47106215,2348.5,2347.5,8.91e-06]
[1769956508495,2.5,2349.9,2347.0,0.48797487]
[1769956508496,0.47106215,2348.4,2347.0,0.48797487]
[1769956508695,0.21317,2347.8,2347.0,4.92353692]
[1769956508897,0.21317,2347.8,2347.0,0.48797487]
[1769956509099,2.131,2348.5,2347.7,4.43556205]
[1769956509298,0.21309,2348.6,2347.6,0.48797487]
[1769956509499,0.21763878,2348.6,2347.6,0.49231143]
[1769956509801,0.47106215,2349.3,2347.6,0.49231143]
[1769956510001,0.47106215,2350.2,2348.6,0.48797487]
[1769956510398,0.47106215,2350.2,2349.2,4.22256205]
[1769956510595,0.47106215,2350.2,2348.6,0.48797487]
[1769956510799,0.21297,2349.9,2349.4,4.22256205]
[1769956511098,0.47106215,2350.3,2349.4,2.2e-07]
[1769956511293,17.40215922,2352.2,2349.4,2.2e-07]
[1769956511604,2.131,2351.8,2349.5,0.47106215]
[1769956511897,0.21288,2350.9,2349.7,0.26544464]
[1769956512198,0.00435141,2350.9,2349.4,4.95189012]
[1769956512396,0.00435141,2350.9,2349.4,2.2e-07]
[1769956512596,0.21296,2350.1,2349.5,2.8208899]
[1769956512798,0.00435141,2350.9,2349.4,2.2e-07]
[1769956512998,0.00435141,2350.9,2349.5,2.8208899]
[1769956513402,0.47106215,2350.8,2349.5,2.8208899]
[1769956513601,0.47106215,2351.6,2350.4,2.3949299]
[1769956513805,0.21294,2350.3,2349.4,2.2e-07]
[1769956514102,0.21296,2350.1,2349.4,2.2e-07]
[1769956514302,0.47106215,2350.7,2349.4,2.2e-07]
[1769956514502,0.21296,2350.1,2349.4,2.2e-07]
[1769956514699,19.77347989,2352.2,2349.4,2.2e-07]
[1769956514700,0.4955325,2352.1,2349.4,2.2e-07]
[1769956514898,0.21294,2350.3,2349.4,1.53365012]
[1769956515111,0.21294,2350.2,2349.4,2.2e-07]
[1769956515312,0.21298,2349.8,2349.4,2.2e-07]
[1769956515506,0.4955325,2350.3,2347.6,0.21318]
[1769956515507,0.4955325,2350.3,2348.1,2.13]
[1769956515708,0.4955325,2350.3,2348.2,0.0078024]
[1769956515913,0.21301,2349.6,2348.2,0.0078024]
[1769956516507,0.21301,2349.6,2348.3,0.0078024]
[1769956517313,0.4955325,2350.3,2348.3,0.0078024]
[1769956517513,2.13,2350.9,2348.3,0.0078024]
[1769956517514,0.4916313,2350.0,2348.3,0.0078024]
[1769956517710,0.4955325,2350.4,2348.5,0.00479908]
[1769956517913,0.21298,2349.8,2348.5,0.00479908]
[1769956518316,0.21301,2349.5,2348.5,0.00479908]
[1769956518524,0.21301,2349.5,2348.6,2.13]
[1769956519316,0.4955325,2350.1,2348.5,0.00479908]
[1769956519514,0.4955325,2349.8,2348.2,2.13480533]
[1769956519710,0.21305,2349.1,2348.2,2.13480533]
[1769956520113,0.4955325,2349.5,2348.2,5.33e-06]
[1769956520308,0.21311,2348.5,2347.2,2.13]
[1769956520511,0.21305,2349.1,2347.2,2.13]
[1769956520712,0.49542145,2349.1,2346.8,0.21325]
[1769956520914,0.70847145,2349.1,2347.3,2.13]
[1769956521113,0.21305,2349.1,2347.3,2.13]
[1769956521314,0.00459695,2349.1,2347.3,2.13467783]
[1769956521514,0.00459695,2349.1,2347.7,0.21316]
[1769956521822,0.00459695,2349.1,2347.3,2.13467783]
[1769956522019,0.00459695,2349.1,2347.3,0.00467783]
[1769956522214,0.21311,2348.4,2347.3,0.00467783]
[1769956522419,0.49538421,2348.8,2347.3,0.00467783]
[1769956522614,0.70847421,2348.6,2347.3,0.00467783]
[1769956522914,0.49538421,2348.6,2347.3,0.00467783]
[1769956523416,0.70847421,2348.6,2347.3,0.00467783]
[1769956523620,0.21313,2348.2,2347.3,0.00467783]
[1769956523914,0.21316,2347.8,2347.3,0.00467783]
[1769956524114,0.21316,2347.8,2347.3,0.00324225]
[1769956524317,0.21317,2347.7,2347.3,0.00324225]
[1769956524813,0.2132,2347.4,2346.5,2.13]
[1769956525616,0.21321,2347.3,2346.3,2.13]
[1769956525814,0.21321,2347.3,2346.3,2.13429982]
[1769956525815,0.21791996,2347.3,2346.3,2.13429982]
[1769956526010,0.00470996,2347.3,2346.3,2.13429982]
[1769956526413,0.21316,2347.9,2346.3,2.13429982]
[1769956526619,0.49538173,2348.4,2346.3,2.13429982]
[1769956526817,0.49538173,2348.4,2346.4,4.629]
[1769956527019,0.21315,2348.0,2346.4,4.629]
[1769956527214,0.21315,2348.0,2346.3,0.21759982]
[1769956527410,0.21820581,2348.0,2346.5,3.109]
[1769956527614,0.21820581,2348.0,2346.6,0.21327]
[1769956527818,0.1927041,2348.0,2346.7,0.02550171]
[1769956528721,0.21304,2349.2,2346.5,7.376]
[1769956528924,0.7085225,2349.7,2347.8,0.21316]
[1769956529128,0.7085225,2349.7,2347.9,5.235]
[1769956529322,2.37132067,2350.3,2348.0,2.13]
[1769956529323,0.4955325,2349.5,2348.0,2.13]
[1769956529516,0.21305,2349.1,2348.1,2.13]
[1769956529819,0.4955325,2349.5,2348.1,2.13343676]
[1769956530324,0.4955325,2349.9,2348.1,2.13343676]
[1769956530524,0.21302,2349.4,2348.1,2.13343676]
[1769956530821,0.21304,2349.2,2348.2,5.232]
[1769956531020,0.7085125,2349.9,2348.2,5.232]
[1769956531216,0.21298,2349.8,2348.2,5.232]
[1769956531415,0.21302,2349.4,2348.3,2.13]
[1769956531620,0.21304,2349.2,2348.3,2.13]
[1769956531820,0.21304,2349.2,2348.1,0.00343676]
[1769956532019,0.21304,2349.2,2348.2,5.229]
[1769956532622,0.4955325,2349.6,2348.2,5.229]
[1769956533016,0.21301,2349.5,2348.2,5.229]
[1769956533223,0.4955325,2349.6,2348.2,5.229]
[1769956533422,0.4955325,2349.6,2348.1,0.00343676]
[1769956533722,0.21309,2348.6,2348.1,0.00343676]
[1769956533923,0.70968017,2348.5,2348.1,0.00343676]
[1769956534118,0.70968017,2348.5,2347.8,2.13]
[1769956534314,0.21314,2348.1,2346.2,3.91210227]
[1769956534513,0.21314,2348.1,2346.8,2.13]
[1769956534719,0.21315,2348.0,2346.8,2.13]
[1769956534920,0.21316,2347.9,2346.8,2.13]
[1769956535117,0.49658017,2347.0,2345.0,3.69880227]
[1769956535313,0.49658017,2346.0,2344.2,0.21348]
[1769956535717,0.49658017,2346.0,2344.3,0.01072915]
[1769956536020,0.49016793,2346.4,2344.6,0.01072915]
[1769956536223,0.00503809,2346.0,2344.6,0.01072915]
[1769956537326,0.21334,2345.9,2344.6,0.01072915]
[1769956537521,0.00503809,2346.0,2344.6,0.01072915]
[1769956537819,0.49643791,2346.0,2344.2,0.22702379]
[1769956538019,0.49643791,2346.0,2344.3,0.00903739]
[1769956541220,0.4933726,2345.7,2344.2,0.0044964]
[1769956541521,0.4933726,2345.3,2344.2,0.00287734]
[1769956541826,0.49362731,2344.9,2344.2,0.00287734]
[1769956542220,0.49362731,2344.9,2343.1,0.00458241]
[1769956542527,0.00503809,2346.0,2343.5,0.00458241]
[1769956542720,0.00503809,2346.0,2344.2,0.44649528]
[1769956542921,0.21334,2345.9,2344.3,2.57749528]
[1769956543122,0.21334,2345.9,2344.4,0.44649528]
[1769956543318,0.00503809,2346.0,2344.4,0.45109662]
[1769956543525,0.21335,2345.8,2344.4,0.45109662]
[1769956543822,0.00503809,2346.0,2344.4,0.45109662]
[1769956544426,0.21335,2345.8,2344.4,0.45109662]
[1769956544626,0.69600947,2345.8,2344.4,0.45109662]
[1769956545925,0.21338,2345.5,2344.4,0.45109662]
[1769956546126,0.69603947,2345.5,2344.4,0.00460134]
[1769956547225,0.48265947,2345.5,2344.4,0.00460134]
[1769956547426,0.48265947,2345.9,2344.4,0.49028418]
[1769956547731,0.21337,2345.6,2344.4,0.49028418]
[1769956548325,0.48769756,2346.0,2344.4,0.49028418]
[1769956548531,0.48769756,2346.0,2344.6,0.48568284]
[1769956549232,0.69600947,2345.8,2344.6,0.48568284]
[1769956549427,0.69600947,2345.8,2344.4,0.00460134]
[1769956549428,0.21337,2345.6,2344.4,0.00460134]
[1769956549625,0.69602947,2345.6,2344.4,0.00460134]
[1769956550831,0.48769756,2346.0,2344.5,0.48568284]
[1769956551229,0.70102756,2346.0,2344.5,0.48568284]
[1769956551426,0.48265947,2345.9,2344.5,0.69914284]
[1769956551729,0.48265947,2345.9,2344.4,0.00460134]
[1769956551730,0.69599947,2345.8,2344.6,0.48568284]
[1769956551932,0.48265947,2345.7,2344.4,0.00460134]
[1769956552129,0.48265947,2345.5,2344.4,0.00460134]
[1769956552632,0.69603947,2345.4,2344.4,0.00460134]
[1769956552832,0.48265947,2345.3,2344.4,0.00460134]
[1769956553724,0.48769756,2346.0,2344.5,0.48568284]
[1769956554434,0.21334,2345.9,2344.5,0.48568284]
[1769956554631,0.48265947,2345.8,2344.5,0.48568284]
[1769956554825,0.48265947,2345.8,2344.4,0.21807134]
[1769956554826,0.69601947,2345.6,2344.4,0.00460134]
[1769956555030,0.69601947,2345.6,2344.4,0.49028418]
[1769956555337,0.48265947,2345.5,2344.4,0.00460134]
[1769956555531,0.48265947,2345.2,2344.4,0.00460134]
[1769956555731,0.48265947,2344.9,2343.8,2.133]
[1769956555936,0.48265947,2344.7,2343.8,2.133]
[1769956556135,0.48265947,2344.6,2343.8,2.133]
[1769956556339,0.48265947,2344.3,2342.9,2.61868284]
[1769956556537,0.48265947,2344.3,2343.0,0.48568284]
[1769956556839,0.48793287,2344.3,2343.1,0.48568284]
[1769956557234,0.0052734,2344.3,2343.3,0.69925284]
[1769956557532,0.0052734,2344.3,2343.4,0.48568284]
[1769956557732,0.69616947,2344.1,2343.0,0.00370549]
[1769956557932,0.0052734,2344.3,2343.0,0.00370549]
[1769956557933,0.48265947,2344.0,2343.0,0.00370549]
[1769956558235,0.0052734,2344.3,2342.9,2.133]
[1769956558236,0.48265947,2343.6,2342.9,2.133]
[1769956558532,0.21355,2343.5,2342.9,2.133]
[1769956558730,0.48265947,2343.4,2342.0,0.48568284]
[1769956558930,0.47971566,2343.3,2342.0,0.48568284]
[1769956559127,0.47971566,2343.0,2341.2,0.48568284]
[1769956559330,0.21371,2341.8,2339.9,0.48568284]
[1769956559532,0.47971566,2341.7,2339.9,0.48568284]
[1769956560033,0.47971566,2341.7,2339.2,2.502]
[1769956560034,0.47971566,2341.7,2340.1,0.48568284]
[1769956560232,0.47890332,2343.4,2340.7,0.48568284]
[1769956560428,0.47890332,2343.8,2341.6,0.48568284]
[1769956560626,0.47890332,2343.6,2341.8,0.48568284]
[1769956561033,0.47890332,2344.1,2341.9,0.48568284]
[1769956561230,0.47890332,2344.0,2342.1,0.48568284]
[1769956561426,0.47890332,2343.8,2342.1,0.48568284]
[1769956561630,0.47890332,2343.4,2341.9,0.00338657]
[1769956561829,0.48231957,2343.3,2341.9,0.48906941]
[1769956562031,0.21776397,2344.1,2341.9,0.48906941]
[1769956562234,0.00426397,2344.1,2342.0,0.48568284]
[1769956562432,0.00426397,2344.1,2341.3,4.90736002]
[1769956562433,0.48265947,2343.0,2341.3,4.90736002]
[1769956562634,0.48265947,2343.1,2341.0,0.21377]
[1769956563432,0.48265947,2343.1,2341.0,0.21771571]
[1769956563632,0.48265947,2342.8,2341.0,0.00394571]
[1769956563833,0.48265947,2343.6,2341.0,0.00394571]
[1769956564032,0.48265947,2343.5,2341.3,0.21375]
[1769956564429,2.44476702,2344.0,2341.3,0.21375]
[1769956564430,0.48265947,2344.0,2341.8,0.48568284]
[1769956564629,0.48265947,2344.0,2342.2,0.48568284]
[1769956564835,0.48265947,2344.0,2342.4,0.48568284]
[1769956565032,0.00426397,2344.1,2342.4,0.48568284]
[1769956565835,0.48265947,2343.6,2342.4,0.48568284]
[1769956566033,0.48265947,2343.5,2341.9,0.48568284]
[1769956566631,0.48265947,2344.0,2342.0,0.48568284]
[1769956566933,0.48265947,2344.0,2342.1,0.48568284]
[1769956567238,0.48265947,2344.0,2341.8,5.196]
[1769956567239,0.00426397,2344.1,2342.3,0.48568284]
[1769956567436,0.48634325,2344.8,2342.8,0.49325188]
[1769956567740,0.48634325,2345.4,2343.1,0.49325188]
[1769956567936,0.48634325,2345.4,2343.5,0.49325188]
[1769956568232,0.48634325,2344.8,2343.5,0.49325188]
[1769956568440,0.69982325,2344.4,2343.5,0.0043236]
[1769956568631,0.69982325,2344.4,2342.1,0.21368]
[1769956568632,0.48634325,2343.8,2342.2,0.49325188]
[1769956568831,0.48634325,2344.3,2342.2,0.49325188]
[1769956569037,0.21367,2342.2,2341.0,0.49325188]
[1769956569335,0.48634325,2342.4,2340.9,0.49325188]
[1769956569533,0.48634325,2343.1,2341.2,0.49325188]
[1769956569738,0.48634325,2343.5,2341.7,0.49325188]
[1769956569932,0.48634325,2343.9,2342.2,0.49325188]
[1769956570127,0.21347,2344.5,2341.2,2.504]
[1769956570128,0.48634325,2343.7,2342.4,0.49325188]
[1769956570329,0.48634325,2343.6,2342.1,2.62725188]
[1769956570533,0.69992325,2343.2,2342.1,2.134]
[1769956570734,0.00475381,2343.2,2342.1,2.62725188]
[1769956571037,0.00475381,2343.2,2342.1,2.134]
[1769956571234,0.00475381,2343.2,2342.2,0.49325188]
[1769956571732,0.00475381,2343.2,2342.1,2.134]
[1769956571933,0.00475381,2343.2,2342.2,0.49325188]
[1769956573642,0.48634325,2344.0,2342.2,0.49325188]
[1769956574142,0.48634325,2343.9,2342.2,0.49325188]
[1769956574339,0.48634325,2343.7,2342.2,0.49325188]
[1769956574732,0.49040938,2343.7,2342.2,0.49325188]
[1769956574938,0.00406613,2343.7,2342.2,0.49325188]
[1769956576134,0.48634325,2344.5,2342.3,0.49325188]
[1769956576441,0.48634325,2344.5,2342.8,0.49325188]
[1769956576746,0.48634325,2344.2,2342.8,0.49325188]
[1769956577037,0.2135,2344.1,2342.8,0.49325188]
[1769956577339,0.00517512,2344.1,2342.8,0.49804709]
[1769956578136,0.48634325,2345.1,2343.0,0.49325188]
[1769956578341,0.48634325,2345.0,2343.6,0.49325188]
[1769956579144,0.69980325,2344.6,2343.2,0.49325188]
[1769956579346,0.48634325,2344.2,2343.1,4.639]
[1769956579941,0.48634325,2344.2,2342.4,0.21365]
[1769956579942,0.21358,2343.2,2341.8,0.49325188]
[1769956580142,0.48634325,2343.7,2341.8,0.49325188]
[1769956580340,3.80767101,2343.6,2342.3,0.49325188]
[1769956580542,0.69996325,2342.8,2341.2,0.49325188]
[1769956580745,0.48634325,2342.8,2341.2,0.49325188]
[1769956580948,0.4916773,2342.8,2341.2,0.49672061]
[1769956581142,0.48634325,2342.3,2341.2,0.00346873]
[1769956581342,0.48634325,2342.1,2340.7,2.134]
[1769956581642,0.48634325,2341.9,2340.7,1.91222864]
[1769956581847,0.48634325,2341.8,2340.7,2.40548052]
[1769956582041,0.00533405,2342.8,2341.2,0.49325188]
[1769956582240,0.4916773,2342.8,2341.5,0.49325188]
[1769956582645,0.4916773,2342.8,2341.7,0.00480102]
[1769956583044,0.4916773,2342.8,2341.5,0.49325188]
[1769956583242,0.4916773,2342.8,2341.2,0.0044084]
[1769956583443,0.48634325,2342.1,2341.2,0.0044084]
[1769956584244,0.48634325,2341.9,2340.3,0.49325188]
[1769956585344,0.48634325,2341.7,2340.3,0.00498521]
[1769956585846,0.48634325,2341.2,2339.1,0.49325188]
[1769956586043,0.21392,2339.5,2338.1,0.49325188]
[1769956586245,0.70020325,2340.1,2338.2,0.49325188]
[1769956586439,0.48634325,2340.1,2338.6,0.49325188]
[1769956586645,0.48634325,2341.0,2339.3,0.49325188]
[1769956586844,0.49175688,2341.0,2339.5,0.49325188]
[1769956587049,0.48634325,2341.4,2340.2,0.49325188]
[1769956587243,0.48634325,2340.6,2339.3,0.00509284]
[1769956587650,2.43323599,2341.4,2339.3,0.01430226]
[1769956587847,4.56823599,2341.4,2339.3,0.49834472]
[1769956588050,0.21893541,2341.4,2339.8,0.49325188]
[1769956588250,0.00518541,2341.4,2340.2,0.49325188]
[1769956588749,0.00518541,2341.4,2339.4,0.49325188]
[1769956589052,0.00518541,2341.4,2339.7,0.5024613]
[1769956589250,0.00518541,2341.4,2340.0,0.49325188]
[1769956589652,0.00518541,2341.4,2340.0,0.5024613]
[1769956589854,0.00518541,2341.4,2340.2,0.49325188]
[1769956590248,0.00518541,2341.4,2340.4,0.00920942]
[1769956590549,0.00518541,2341.4,2340.2,0.49325188]
[1769956590756,0.00518541,2341.4,2340.3,0.00920942]
[1769956591048,0.00518541,2341.4,2340.3,0.49325188]
[1769956591250,0.48585521,2342.1,2340.9,0.5024613]
[1769956591454,0.48585521,2342.1,2340.9,0.49325188]
[1769956591654,0.69954521,2342.0,2340.2,0.49325188]
[1769956592153,0.69954521,2342.0,2340.1,2.506]
[1769956592154,0.70387008,2342.0,2340.6,0.49325188]
[1769956592354,0.70004325,2341.9,2340.6,0.49325188]
[1769956592549,0.48634325,2341.8,2340.2,0.49325188]
[1769956593048,0.48634325,2341.7,2340.2,0.5024613]
[1769956593247,0.00432487,2342.0,2340.8,0.49325188]
[1769956593754,0.48634325,2343.3,2341.7,0.49325188]
[1769956593953,0.21355,2343.5,2342.0,0.49325188]
[1769956594148,0.21357,2343.4,2342.2,0.49325188]
[1769956594348,0.69991325,2343.4,2342.2,0.49325188]
[1769956594746,0.21836999,2343.4,2342.2,0.50751898]
[1769956595057,0.21351,2344.0,2342.7,0.5024613]
[1769956595251,0.21351,2344.0,2342.7,0.49325188]
[1769956595756,0.21351,2344.0,2342.8,0.5024613]
[1769956595946,0.00359422,2344.0,2342.8,0.49325188]
[1769956596151,0.21346,2344.5,2343.2,0.49325188]
[1769956596353,0.69984325,2344.1,2343.0,2.136]
[1769956596857,0.48634325,2344.0,2343.0,2.136]
[1769956597154,0.48634325,2344.0,2342.8,0.49325188]
[1769956598256,0.21352,2343.9,2342.8,0.46674071]
[1769956598453,0.4789158,2343.8,2342.4,0.46674071]
[1769956598951,0.21358,2343.3,2342.2,0.00505768]
[1769956599346,0.21358,2343.3,2342.2,0.0142671]
[1769956599552,0.2136,2343.0,2342.2,0.00505768]
[1769956599846,0.4789158,2342.8,2341.1,0.46674071]
[1769956600052,0.4789158,2342.2,2340.4,0.46674071]
[1769956600245,0.4789158,2342.2,2340.7,0.46674071]
[1769956600456,0.6925558,2342.6,2340.9,0.46674071]
[1769956600656,0.4789158,2342.4,2340.9,0.46674071]
[1769956600856,0.48397348,2342.4,2341.1,0.46674071]
[1769956601051,0.69763348,2342.4,2341.1,0.47595013]
[1769956601360,0.21367,2342.3,2341.0,2.60274071]
[1769956601554,0.21361,2343.0,2341.7,0.00920942]
[1769956601757,0.4789158,2342.8,2341.4,0.46674071]
[1769956601947,0.4789158,2342.7,2341.4,0.46674071]
[1769956602458,0.4789158,2342.5,2340.4,0.46674071]
[1769956602653,0.4789158,2342.4,2340.6,0.46674071]
[1769956602849,0.4789158,2342.4,2340.6,0.4811025]
[1769956603153,0.6926158,2342.0,2340.4,0.46674071]
[1769956603352,0.69635665,2342.0,2340.6,2.60274071]
[1769956603553,0.69635665,2342.0,2340.8,0.01436179]
[1769956603757,0.00374085,2342.0,2341.4,0.01436179]
[1769956604153,0.00374085,2342.0,2341.8,0.01436179]
[1769956604353,0.4789158,2342.4,2341.7,0.01436179]
[1769956604658,0.4789158,2342.4,2341.5,0.01436179]
[1769956604852,0.4789158,2342.4,2340.5,0.21382]
[1769956605158,0.48153606,2341.8,2340.4,0.00426349]
[1769956605361,0.00141152,2341.8,2340.4,0.47998219]
[1769956605553,0.48153606,2342.3,2341.1,0.4757187]
[1769956605759,0.21368,2342.1,2340.6,0.4757187]
[1769956605959,0.69521606,2342.1,2340.8,0.4757187]
[1769956606160,0.69521606,2342.1,2340.9,0.01436179]
[1769956606558,0.69521606,2342.1,2341.0,0.01436179]
[1769956606859,0.48153606,2342.5,2341.0,0.4757187]
[1769956607054,0.69519606,2342.4,2341.0,0.4757187]
[1769956607255,0.69523606,2341.9,2340.6,0.4757187]
[1769956607653,0.69523606,2341.9,2340.9,0.01436179]
[1769956607857,0.69524606,2341.8,2340.6,0.4757187]
[1769956608055,35.55493704,2342.8,2340.8,0.4757187]
[1769956608056,0.69521606,2342.2,2340.8,0.4757187]
[1769956608257,0.48153606,2342.1,2340.8,0.4757187]
[1769956608455,0.48153606,2342.0,2340.8,0.4757187]
[1769956608657,0.21371,2341.8,2340.4,0.47998219]
[1769956608856,0.69524606,2341.8,2340.4,0.49434398]
[1769956609055,0.21376,2341.3,2340.4,0.00426349]
[1769956609357,0.48153606,2341.1,2339.7,2.6117187]
[1769956609555,0.69530606,2341.1,2339.7,2.6117187]
[1769956609756,0.48153606,2340.7,2339.7,2.136]
[1769956610256,0.21384,2340.4,2339.7,0.00545371]
[1769956610557,0.48473694,2340.7,2339.8,0.01436179]
[1769956610757,0.69527606,2341.5,2339.9,0.4757187]
[1769956611056,0.48153606,2341.0,2339.9,0.4757187]
[1769956611256,0.21378,2341.1,2339.9,0.4757187]
[1769956611560,0.48153606,2341.3,2340.3,0.01436179]
[1769956611858,0.48645761,2341.3,2339.5,0.4757187]
[1769956612062,0.47739703,2341.0,2339.5,0.4757187]
[1769956612257,0.21381,2340.8,2339.5,0.4757187]
[1769956612767,0.47739703,2340.9,2339.5,0.4757187]
[1769956613059,0.21868155,2341.3,2339.5,0.48067756]
[1769956613264,0.00492155,2341.3,2339.7,0.4757187]
[1769956613664,0.00492155,2341.3,2339.9,0.4757187]
[1769956613965,0.00492155,2341.3,2340.1,0.4757187]
[1769956614159,0.4791782,2342.1,2340.1,0.4757187]
[1769956614463,0.4791782,2341.9,2340.1,0.4757187]
[1769956614659,0.4791782,2341.8,2340.2,0.4757187]
[1769956614856,0.2137,2341.9,2340.2,0.4757187]
[1769956615056,0.4791782,2342.2,2340.3,0.4757187]
[1769956615261,0.48314159,2342.2,2340.4,2.137]
[1769956615460,0.21369,2342.1,2340.5,0.4757187]
[1769956615956,0.21371,2341.8,2340.7,0.4757187]
[1769956616160,0.00396339,2342.2,2340.7,0.4757187]
[1769956616365,0.46530425,2341.8,2340.3,0.4757187]
[1769956617166,0.21372,2341.7,2340.3,0.4757187]
[1769956617368,0.21373,2341.6,2340.3,0.4757187]
[1769956618057,0.46530425,2341.8,2340.3,0.4757187]
[1769956618266,0.21377,2341.2,2339.7,0.4757187]
[1769956618967,0.46011197,2340.9,2339.5,0.00495886]
[1769956619470,0.46011197,2340.7,2339.5,0.00495886]
[1769956620265,0.46011197,2340.7,2339.5,0.48067756]
[1769956621362,0.45552443,2341.1,2339.5,0.48067756]
[1769956621567,0.45552443,2341.3,2339.6,0.4757187]
[1769956621768,0.45000833,2341.2,2339.6,0.4757187]
[1769956621967,0.21376,2341.3,2339.7,0.4757187]
[1769956622170,0.45000833,2341.6,2339.8,0.4757187]
[1769956622765,0.66373833,2341.6,2339.9,0.4757187]
[1769956623165,0.45000833,2342.0,2340.2,0.4757187]
[1769956623367,0.45000833,2341.6,2340.2,0.4757187]
[1769956623568,0.21378,2341.1,2339.6,0.4757187]
[1769956623771,0.45098857,2340.9,2339.6,0.4757187]
[1769956624269,0.21382,2340.6,2339.6,0.4757187]
[1769956624570,0.45098857,2340.6,2339.5,2.14195886]
[1769956624866,0.45098857,2341.1,2339.6,0.4757187]
[1769956625069,0.45098857,2341.9,2339.7,0.4757187]
[1769956625266,0.45098857,2341.9,2340.1,0.4757187]
[1769956625973,0.65732311,2341.7,2340.1,0.4757187]
[1769956626166,0.65734311,2341.5,2340.2,2.137]
[1769956626368,0.65734311,2341.5,2340.1,0.4757187]
[1769956627073,0.21374,2341.5,2340.1,0.4757187]
[1769956627273,0.21377,2341.2,2340.1,0.4757187]
[1769956627474,0.44394494,2341.6,2340.1,0.4757187]
[1769956627663,0.21379,2341.0,2340.1,0.4757187]
[1769956628469,0.21381,2340.7,2339.6,0.49275447]
[1769956628870,0.44974829,2340.2,2338.8,0.49275447]
[1769956629164,2.43666231,2340.9,2338.0,50.0]
[1769956629165,0.44478943,2339.6,2338.0,50.0]
[1769956629369,0.44478943,2339.2,2338.0,50.0]
[1769956629570,0.44478943,2339.5,2338.1,0.49275447]
[1769956629771,0.21389,2339.8,2338.1,0.49275447]
[1769956629974,0.00406267,2339.8,2338.4,0.49275447]
[1769956630270,0.21383,2340.5,2338.1,0.00416362]
[1769956630271,0.21383,2340.5,2338.7,0.49275447]
[1769956630466,0.65112114,2340.5,2338.7,0.49275447]
[1769956630670,0.21383,2340.5,2338.9,0.49275447]
[1769956630967,37.1424168,2340.9,2338.9,0.49275447]
[1769956630968,2.43666231,2340.9,2338.9,0.49275447]
[1769956631174,0.43729114,2340.8,2338.9,0.49275447]
[1769956631385,0.21385,2340.3,2338.9,0.49275447]
[1769956631669,0.43729114,2339.8,2338.1,0.00416362]
[1769956631870,0.41731885,2339.3,2338.1,0.00416362]
[1769956632072,0.21391,2339.6,2338.1,0.49691809]
[1769956632873,0.21394,2339.3,2338.1,0.00416362]
[1769956633169,0.63128885,2339.0,2338.1,0.00416362]
[1769956633374,0.21398,2338.8,2338.0,50.0]
[1769956633575,0.21398,2338.8,2338.0,49.28160473]
[1769956633869,0.00395496,2339.0,2338.0,49.28160473]
[1769956634266,0.00395496,2339.0,2338.0,8.43383143]
[1769956634267,0.214,2338.7,2338.0,8.43383143]
[1769956634467,0.47701902,2337.4,2335.9,24.0]
[1769956634672,0.69105902,2338.2,2335.9,7.31600179]
[1769956634872,4.10414736,2338.1,2336.0,28.27600179]
[1769956635071,0.47701902,2337.8,2336.0,24.0]
[1769956635467,0.47701902,2338.2,2336.4,4.27600179]